bitfinex-derivatives/quotes_BTCF0:USTF0_20250127
["timestamp","ask_amount","ask_price","bid_price","bid_amount"]
[1738000286778,0.40971346,99460.0,99447.0,0.201182]
[1738000286983,0.3608,99450.0,99448.0,0.002]
[1738000287573,0.3608,99450.0,99444.0,0.00015084]
[1738000287780,0.3608,99450.0,99440.0,0.05071036]
[1738000287965,0.3608,99450.0,99374.0,0.3608]
[1738000287966,0.3608,99433.0,99374.0,0.3608]
[1738000288166,0.3608,99399.0,99370.0,0.22502428]
[1738000288370,0.3608,99399.0,99372.0,0.20284234]
[1738000288572,0.3608,99399.0,99372.0,0.00150934]
[1738000288767,0.201309,99384.0,99372.0,0.00150934]
[1738000288976,0.201309,99384.0,99357.0,0.08116643]
[1738000288977,0.20132,99379.0,99357.0,0.08116643]
[1738000289171,0.3608,99374.0,99357.0,0.13270687]
[1738000289484,0.3608,99374.0,99368.0,0.00015092]
[1738000291171,0.3608,99374.0,99368.0,0.05009157]
[1738000291369,0.00015092,99375.0,99368.0,0.00015092]
[1738000291567,0.001,99384.0,99383.0,0.201312]
[1738000291770,0.3608,99389.0,99374.0,0.22554428]
[1738000292079,0.3608,99389.0,99382.0,0.201313]
[1738000292379,0.3608,99389.0,99388.0,1.5]
[1738000292772,0.3608,99389.0,99388.0,1.701301]
[1738000293172,0.3618,99389.0,99388.0,1.701301]
[1738000293681,0.3618,99389.0,99388.0,1.5]
[1738000294283,0.3608,99389.0,99388.0,1.503]
[1738000294974,0.3608,99389.0,99388.0,1.45285709]
[1738000295770,0.00015092,99398.0,99397.0,0.201283]
[1738000296083,0.3608,99404.0,99403.0,0.201271]
[1738000296389,0.3608,99428.0,99427.0,0.201222]
[1738000296776,0.3608,99428.0,99427.0,1.701222]
[1738000297881,0.3608,99428.0,99427.0,1.75051913]
[1738000298091,0.3618,99428.0,99427.0,1.70037622]
[1738000298384,0.13045891,99430.0,99429.0,0.201218]
[1738000298778,0.13045891,99430.0,99429.0,0.501218]
[1738000298978,0.00015092,99437.0,99436.0,0.201204]
[1738000300385,0.00015092,99437.0,99436.0,0.206204]
[1738000300386,0.00115092,99437.0,99436.0,0.206204]
[1738000300579,0.00115092,99437.0,99436.0,0.207204]
[1738000300976,1e-08,99437.0,99436.0,0.15706109]
[1738000301284,0.3608,99462.0,99436.0,0.3668]
[1738000301472,0.204152,99457.0,99439.0,0.201197]
[1738000301678,0.00299,99457.0,99448.0,0.201179]
[1738000301876,0.00299,99457.0,99449.0,1.5]
[1738000302784,0.3608,99452.0,99443.0,0.00015083]
[1738000302989,0.3608,99452.0,99448.0,0.001]
[1738000303287,0.3608,99452.0,99436.0,0.002]
[1738000303486,0.562002,99437.0,99436.0,0.002]
[1738000303681,0.3608,99437.0,99436.0,0.002]
[1738000303988,0.3608,99439.0,99432.0,0.201211]
[1738000304174,0.3608,99439.0,99420.0,1.44985709]
[1738000304376,0.3608,99439.0,99428.0,0.201219]
[1738000304577,0.36095083,99439.0,99431.0,0.201213]
[1738000304876,0.36095083,99439.0,99432.0,0.201211]
[1738000305281,0.36095083,99439.0,99426.0,0.201224]
[1738000305988,0.36095083,99439.0,99420.0,1.45000792]
[1738000306184,0.36095083,99439.0,99431.0,0.201214]
[1738000306379,0.002,99437.0,99426.0,0.003]
[1738000306576,0.002,99437.0,99433.0,0.20121]
[1738000306776,0.002,99437.0,99436.0,0.201204]
[1738000307089,0.00015083,99439.0,99429.0,0.7216]
[1738000307384,0.00015083,99439.0,99438.0,2.062]
[1738000309785,0.00015083,99439.0,99438.0,2.067]
[1738000309971,0.00015083,99439.0,99438.0,2.11668497]
[1738000310178,0.00015083,99439.0,99438.0,2.06654206]
[1738000311072,0.00015083,99439.0,99438.0,0.05468497]
[1738000311684,0.00015083,99439.0,99438.0,0.25588497]
[1738000312478,0.00015083,99439.0,99438.0,1.75588497]
[1738000312988,0.00015083,99439.0,99438.0,1.75188497]
[1738000313176,0.00015083,99439.0,99438.0,1.50354206]
[1738000313376,0.20134883,99439.0,99438.0,0.00354206]
[1738000313688,0.00015083,99439.0,99438.0,0.00354206]
[1738000313878,0.00015083,99439.0,99438.0,0.003]
[1738000314191,0.00015083,99439.0,99438.0,0.004]
[1738000315086,0.20134883,99439.0,99438.0,0.004]
[1738000315485,0.20134883,99439.0,99438.0,0.001]
[1738000315690,0.20134883,99439.0,99438.0,0.004]
[1738000316190,0.00015083,99439.0,99427.0,0.201222]
[1738000316587,0.3608,99433.0,99427.0,0.201222]
[1738000316787,0.3608,99433.0,99424.0,0.3608]
[1738000316976,0.3608,99433.0,99406.0,0.201265]
[1738000316977,0.201235,99421.0,99406.0,0.201265]
[1738000317182,0.201235,99421.0,99407.0,1.5015088]
[1738000317386,0.3608,99425.0,99407.0,1.5015088]
[1738000317681,0.3608,99410.0,99407.0,1.5015088]
[1738000318484,0.3608,99410.0,99407.0,0.0015088]
[1738000318785,0.050314,99409.0,99360.0,0.22502428]
[1738000318986,0.3608,99387.0,99376.0,0.201325]
[1738000319382,0.3608,99387.0,99376.0,0.15118209]
[1738000319776,0.3608,99387.0,99374.0,0.04142]
[1738000319977,0.201307,99386.0,99374.0,0.04142]
[1738000320179,0.3608,99387.0,99374.0,0.04142]
[1738000320380,0.00015091,99391.0,99378.0,0.3608]
[1738000320582,0.00015091,99391.0,99381.0,0.201315]
[1738000320796,0.00015091,99391.0,99384.0,0.201309]
[1738000320984,0.00015091,99391.0,99377.0,0.3608]
[1738000321185,0.00015091,99391.0,99379.0,0.201319]
[1738000321390,0.201323,99378.0,99374.0,0.04142]
[1738000321597,0.562128,99375.0,99374.0,0.00150929]
[1738000321786,0.562128,99375.0,99372.0,0.00015091]
[1738000321990,0.3608,99375.0,99372.0,0.00015091]
[1738000322296,0.201355,99362.0,99346.0,1.456008]
[1738000322599,0.201357,99361.0,99344.0,0.00150997]
[1738000322798,0.201363,99358.0,99344.0,0.00150997]
[1738000322984,0.562188,99346.0,99344.0,0.00150997]
[1738000323185,0.3608,99346.0,99344.0,0.04099848]
[1738000323379,0.3608,99354.0,99344.0,0.40179848]
[1738000323696,0.00015099,99355.0,99348.0,0.201382]
[1738000323988,0.00015099,99355.0,99353.0,0.562171]
[1738000324196,0.3608,99380.0,99353.0,0.7216]
[1738000324388,0.3608,99380.0,99356.0,0.22502428]
[1738000324585,0.3608,99380.0,99365.0,0.3608]
[1738000324793,0.3608,99392.0,99379.0,0.201319]
[1738000325094,0.3608,99405.0,99387.0,0.201303]
[1738000325293,0.3608,99393.0,99378.0,0.31065709]
[1738000325690,0.3608,99393.0,99387.0,0.201302]
[1738000326284,0.3608,99393.0,99378.0,0.35114067]
[1738000327096,0.3608,99393.0,99388.0,0.2013]
[1738000327791,0.3618,99393.0,99388.0,0.2013]
[1738000327986,0.563093,99393.0,99378.0,0.04448358]
[1738000328203,0.3608,99379.0,99378.0,0.004]
[1738000328401,0.3608,99379.0,99365.0,0.04943816]
[1738000328697,0.3608,99379.0,99363.0,0.201352]
[1738000328895,0.3608,99369.0,99352.0,0.05023872]
[1738000329103,0.3608,99359.0,99341.0,0.1617]
[1738000329290,0.3608,99350.0,99349.0,0.20138]
[1738000330001,0.36095099,99359.0,99344.0,0.41261918]
[1738000330201,0.00015099,99359.0,99344.0,0.36230997]
[1738000330395,0.00015099,99359.0,99358.0,0.201362]
[1738000331406,0.00015099,99359.0,99358.0,0.15121909]
[1738000331407,0.00115099,99359.0,99358.0,0.15121909]
[1738000331695,0.00115099,99359.0,99358.0,1.65121909]
[1738000331905,0.00015099,99359.0,99358.0,1.65221909]
[1738000332799,0.3608,99371.0,99358.0,1.501]
[1738000333003,0.3608,99371.0,99359.0,0.201359]
[1738000333195,0.3608,99361.0,99358.0,0.00152]
[1738000333393,0.562158,99361.0,99358.0,0.001]
[1738000333800,0.201359,99360.0,99358.0,0.001]
[1738000334007,0.3608,99361.0,99350.0,0.049727]
[1738000334194,0.3608,99361.0,99358.0,0.001]
[1738000334802,0.00015099,99369.0,99358.0,0.001]
[1738000335304,0.00015099,99369.0,99368.0,0.3608]
[1738000335497,0.3608,99392.0,99368.0,1.8608]
[1738000335694,0.3608,99380.0,99368.0,1.5]
[1738000335898,0.3608,99380.0,99369.0,0.201339]
[1738000336100,0.3608,99372.0,99368.0,1.50052]
[1738000336297,0.3608,99372.0,99358.0,0.001]
[1738000336298,0.201339,99370.0,99358.0,0.001]
[1738000336500,0.3608,99364.0,99358.0,0.001]
[1738000336705,0.3608,99364.0,99359.0,1.5]
[1738000337409,0.201353,99363.0,99354.0,0.00015099]
[1738000337709,0.201359,99360.0,99343.0,0.15491005]
[1738000338006,0.3608,99364.0,99328.0,0.3608]
[1738000338199,0.3608,99364.0,99358.0,0.001]
[1738000338902,0.3608,99364.0,99361.0,0.201354]
[1738000339103,0.3608,99364.0,99355.0,0.201368]
[1738000339306,0.3608,99364.0,99356.0,0.201365]
[1738000339606,0.3608,99364.0,99354.0,0.001]
[1738000339807,0.3608,99364.0,99355.0,0.201367]
[1738000340505,0.3608,99364.0,99354.0,0.05074924]
[1738000340822,0.3608,99355.0,99351.0,0.00015099]
[1738000341201,0.201371,99354.0,99351.0,0.00015099]
[1738000341402,0.3608,99355.0,99351.0,0.00015099]
[1738000342112,0.562169,99355.0,99351.0,0.00015099]
[1738000342402,0.562169,99355.0,99338.0,0.204401]
[1738000342403,0.201401,99339.0,99338.0,0.003]
[1738000342604,0.7216,99339.0,99324.0,0.052408]
[1738000342905,0.3608,99325.0,99324.0,0.052408]
[1738000343106,0.3608,99331.0,99324.0,0.052408]
[1738000343314,0.3608,99331.0,99325.0,1.5]
[1738000343695,0.3608,99339.0,99325.0,1.5]
[1738000343696,0.00015099,99337.0,99325.0,1.44985709]
[1738000343903,0.00015099,99337.0,99334.0,0.20141]
[1738000344601,0.00015099,99337.0,99331.0,0.3608]
[1738000345005,0.00015099,99337.0,99335.0,0.201408]
[1738000345209,0.3608,99363.0,99332.0,0.329]
[1738000345405,0.44954699,99377.0,99342.0,0.050348]
[1738000345406,0.3608,99369.0,99342.0,0.050348]
[1738000345608,0.3608,99369.0,99357.0,0.201364]
[1738000345800,0.201353,99363.0,99351.0,0.3608]
[1738000346001,0.3608,99358.0,99341.0,0.3608]
[1738000346195,0.201365,99357.0,99341.0,0.3608]
[1738000346407,0.3608,99358.0,99341.0,0.04990325]
[1738000346612,0.3608,99358.0,99342.0,0.15125109]
[1738000346810,0.3608,99358.0,99340.0,0.00015099]
[1738000346811,0.3608,99358.0,99340.0,0.05112716]
[1738000347106,0.3608,99347.0,99340.0,0.05112716]
[1738000347710,0.3608,99347.0,99340.0,0.00015099]
[1738000347906,0.201396,99342.0,99340.0,0.00015099]
[1738000348305,0.201397,99341.0,99340.0,0.00015099]
[1738000348612,0.41126501,99347.0,99325.0,1.44985709]
[1738000348813,0.3608,99335.0,99325.0,1.44985709]
[1738000349312,0.3608,99327.0,99325.0,1.44985709]
[1738000349506,0.3608,99327.0,99321.0,0.0369]
[1738000349706,0.20144,99320.0,99316.0,0.00015099]
[1738000349902,0.3608,99335.0,99316.0,0.00015099]
[1738000350104,0.3608,99335.0,99322.0,0.201435]
[1738000350412,0.201415,99332.0,99316.0,0.20159699]
[1738000350623,0.3608,99326.0,99316.0,0.00015099]
[1738000350799,0.20143,99325.0,99316.0,0.00015099]
[1738000351203,0.3608,99326.0,99316.0,0.00015099]
[1738000351608,0.3608,99326.0,99317.0,1.5]
[1738000351814,0.00015099,99336.0,99332.0,0.201413]
[1738000352010,0.00015099,99336.0,99321.0,0.3608]
[1738000352208,0.00015099,99336.0,99318.0,0.1765]
[1738000352412,0.3608,99329.0,99319.0,1.5]
[1738000352910,0.11832932,99327.0,99319.0,1.44985709]
[1738000353110,0.3608,99321.0,99316.0,0.00015099]
[1738000353411,0.201445,99317.0,99316.0,0.00015099]
[1738000353713,0.3608,99317.0,99300.0,0.02300464]
[1738000353913,0.6608,99321.0,99300.0,0.02300464]
[1738000353914,0.923078,99301.0,99300.0,0.02300464]
[1738000354309,0.7216,99301.0,99278.0,0.003]
[1738000354506,0.562322,99279.0,99278.0,0.003]
[1738000355815,0.562322,99279.0,99263.0,0.29876164]
[1738000355816,0.3608,99279.0,99263.0,0.2487698]
[1738000356010,0.3608,99264.0,99263.0,0.2487698]
[1738000356214,0.3608,99264.0,99242.0,0.41669347]
[1738000356405,0.3608,99264.0,99242.0,0.41617347]
[1738000356406,0.562383,99249.0,99242.0,0.41617347]
[1738000357117,0.3608,99249.0,99238.0,0.3003922]
[1738000357423,0.3608,99253.0,99238.0,0.3003922]
[1738000357607,0.00015107,99258.0,99257.0,0.201567]
[1738000357811,0.3608,99282.0,99262.0,0.201555]
[1738000358013,0.201502,99290.0,99276.0,0.3608]
[1738000358218,0.3608,99294.0,99276.0,0.3608]
[1738000358912,0.001,99282.0,99276.0,0.31065709]
[1738000359805,0.001,99282.0,99275.0,0.00015107]
[1738000360209,0.201523,99279.0,99275.0,0.00015107]
[1738000360411,0.58675452,99285.0,99275.0,0.00015107]
[1738000360825,0.3608,99285.0,99275.0,0.00015107]
[1738000361024,0.001,99282.0,99275.0,0.00015107]
[1738000361224,0.001,99282.0,99275.0,0.36095107]
[1738000361526,0.3608,99302.0,99281.0,1.5]
[1738000361711,0.001,99285.0,99281.0,1.5]
[1738000361912,0.001,99285.0,99281.0,1.44985709]
[1738000363121,0.001,99285.0,99281.0,1.65137509]
[1738000363324,0.00015107,99295.0,99291.0,0.201496]
[1738000363819,0.00015107,99295.0,99287.0,0.3608]
[1738000363820,0.36160001,99313.0,99287.0,0.7216]
[1738000364026,0.3608,99332.0,99308.0,0.201462]
[1738000364235,0.3608,99332.0,99312.0,0.3608]
[1738000364925,0.36231147,99314.0,99303.0,0.3608]
[1738000365127,0.37131147,99314.0,99303.0,0.00015107]
[1738000365623,0.01551147,99314.0,99308.0,0.201462]
[1738000365924,0.01551147,99314.0,99310.0,0.562259]
[1738000366429,0.01451147,99314.0,99310.0,0.562259]
[1738000366726,0.01451147,99314.0,99312.0,0.201455]
[1738000366928,0.01451147,99314.0,99313.0,1.5]
[1738000367435,0.14806272,99323.0,99313.0,1.5]
[1738000367620,0.00151047,99351.0,99322.0,0.3608]
[1738000367816,0.00151047,99351.0,99333.0,0.3608]
[1738000368016,0.00151047,99351.0,99322.0,0.3608]
[1738000368225,0.14780644,99326.0,99322.0,0.3608]
[1738000368524,0.14780644,99326.0,99322.0,0.30758877]
[1738000368830,0.14780644,99326.0,99325.0,0.201429]
[1738000369127,0.17749399,99333.0,99332.0,0.201415]
[1738000369431,0.17749399,99333.0,99332.0,2.062215]
[1738000369627,0.17749399,99333.0,99332.0,1.8608]
[1738000369927,0.17749399,99333.0,99332.0,0.201415]
[1738000370320,0.00015107,99334.0,99332.0,1.48983955]
[1738000370732,0.00015107,99334.0,99331.0,0.3608]
[1738000370733,0.003,99333.0,99325.0,0.201429]
[1738000370930,0.003,99333.0,99322.0,0.25744586]
[1738000372019,0.003,99333.0,99325.0,0.001]
[1738000372631,0.003,99333.0,99328.0,0.201422]
[1738000372827,0.00015107,99334.0,99322.0,0.25844586]
[1738000373034,0.00015107,99334.0,99332.0,0.201413]
[1738000374034,0.00015107,99334.0,99332.0,0.15127009]
[1738000374530,0.00315107,99334.0,99332.0,0.15127009]
[1738000374727,0.00315107,99334.0,99322.0,0.30904228]
[1738000374728,0.00315107,99334.0,99322.0,0.25744586]
[1738000375122,0.3608,99324.0,99322.0,0.05064428]
[1738000375430,0.3608,99324.0,99311.0,0.05051834]
[1738000375733,0.3608,99324.0,99302.0,0.00151047]
[1738000375734,0.3608,99315.0,99302.0,0.00151047]
[1738000376322,0.3608,99315.0,99305.0,0.05099693]
[1738000376722,0.3608,99315.0,99314.0,0.00415107]
[1738000377128,0.3608,99324.0,99305.0,0.00500509]
[1738000377331,0.00015107,99334.0,99328.0,0.201423]
[1738000377636,0.00015107,99334.0,99333.0,0.3608]
[1738000377817,0.00299,99352.0,99333.0,0.3608]
[1738000377818,0.00299,99352.0,99336.0,0.201407]
[1738000378018,0.14165499,99353.0,99351.0,2.062176]
[1738000378434,0.20610764,99370.0,99351.0,1.8608]
[1738000378626,0.20610764,99370.0,99365.0,0.201346]
[1738000379133,0.20610764,99370.0,99356.0,0.36095099]
[1738000379329,0.20610764,99370.0,99360.0,0.201357]
[1738000379518,0.20610764,99370.0,99362.0,0.201354]
[1738000379726,0.01199,99367.0,99357.0,0.22502428]
[1738000379926,0.01199,99367.0,99366.0,0.201346]
[1738000380125,0.01199,99367.0,99366.0,0.15120309]
[1738000380432,0.00299,99367.0,99366.0,0.51200309]
[1738000381136,0.29504446,99376.0,99366.0,0.51200309]
[1738000381137,0.2807407,99376.0,99375.0,0.201328]
[1738000381339,0.2807407,99376.0,99375.0,0.562128]
[1738000381640,0.22880858,99378.0,99377.0,0.201324]
[1738000381828,0.3608,99410.0,99377.0,1.5]
[1738000382143,0.3608,99410.0,99396.0,0.201285]
[1738000382638,0.08897335,99404.0,99399.0,0.201279]
[1738000382939,0.08897335,99404.0,99399.0,1.701279]
[1738000383143,0.08897335,99404.0,99399.0,1.65113609]
[1738000383646,0.08897335,99404.0,99399.0,1.70255655]
[1738000383832,0.109,99400.0,99399.0,1.70355655]
[1738000384354,0.109,99400.0,99399.0,1.55242046]
[1738000384640,0.109,99400.0,99399.0,0.001]
[1738000385048,0.109,99400.0,99387.0,0.00015091]
[1738000385432,0.3608,99393.0,99387.0,0.05132965]
[1738000385643,0.3608,99393.0,99387.0,0.00015091]
[1738000386147,0.3608,99393.0,99365.0,0.0006]
[1738000386148,0.7216,99393.0,99364.0,0.31231746]
[1738000386447,0.106,99400.0,99351.0,0.329]
[1738000386448,0.3608,99366.0,99351.0,0.49628]
[1738000386643,0.3608,99377.0,99360.0,0.201357]
[1738000386836,0.3608,99377.0,99368.0,0.3608]
[1738000387135,0.3608,99396.0,99384.0,0.201309]
[1738000387338,0.3608,99396.0,99376.0,0.3608]
[1738000387649,0.00015091,99382.0,99372.0,0.201333]
[1738000387846,0.00015091,99382.0,99363.0,0.00015091]
[1738000387847,0.3608,99376.0,99365.0,0.201348]
[1738000388140,0.3608,99376.0,99368.0,0.005]
[1738000389143,0.001,99377.0,99375.0,0.201328]
[1738000389441,0.001,99377.0,99375.0,0.15118509]
[1738000390338,0.1614,99381.0,99373.0,0.3608]
[1738000390639,0.1614,99381.0,99378.0,0.201321]
[1738000390838,0.1614,99381.0,99376.0,0.003]
[1738000391045,0.00015091,99382.0,99381.0,0.201316]
[1738000391249,0.1,99400.0,99394.0,0.201289]
[1738000391438,0.1,99400.0,99398.0,0.20128]
[1738000392343,0.1,99400.0,99399.0,0.31065709]
[1738000392945,0.1,99400.0,99399.0,1.5]
[1738000393340,0.4608,99400.0,99389.0,0.00015091]
[1738000393538,0.104,99400.0,99389.0,0.00015091]
[1738000393740,0.105,99400.0,99398.0,0.201281]
[1738000394547,0.56208,99399.0,99390.0,0.00052]
[1738000394752,0.3608,99391.0,99389.0,0.00015091]
[1738000395041,0.1785,99390.0,99359.0,0.3608]
[1738000395351,0.3608,99381.0,99359.0,0.31216661]
[1738000395543,0.3608,99381.0,99361.0,0.201356]
[1738000395847,0.3608,99381.0,99359.0,0.36247217]
[1738000396234,0.36095091,99381.0,99367.0,0.201343]
[1738000396442,0.3608,99369.0,99361.0,0.00015091]
[1738000396637,0.3608,99368.0,99361.0,0.00415091]
[1738000396837,0.3608,99379.0,99361.0,0.00415091]
[1738000397045,0.3608,99379.0,99377.0,0.201323]
[1738000397246,0.00015091,99381.0,99380.0,0.201318]
[1738000397438,0.1,99400.0,99399.0,0.201279]
[1738000397636,0.1,99400.0,99398.0,0.201281]
[1738000398345,0.1,99400.0,99398.0,0.15113809]
[1738000399141,0.101,99400.0,99398.0,0.15113809]
[1738000399339,0.101,99400.0,99399.0,0.3608]
[1738000400045,0.105,99400.0,99399.0,0.3608]
[1738000400548,0.105,99400.0,99398.0,0.20273263]
[1738000400748,0.105,99400.0,99398.0,0.05159454]
[1738000400941,0.105,99400.0,99398.0,0.201281]
[1738000401341,0.106,99400.0,99398.0,0.15113809]
[1738000401547,0.106,99400.0,99399.0,1.5]
[1738000402251,0.08897335,99405.0,99400.0,0.201277]
[1738000402454,0.08897335,99405.0,99404.0,0.562069]
[1738000402648,0.00015091,99409.0,99408.0,0.201261]
[1738000402852,0.1822,99440.0,99426.0,0.201225]
[1738000403347,0.1822,99440.0,99426.0,1.5]
[1738000403538,0.1822,99440.0,99427.0,0.201221]
[1738000403745,0.3608,99428.0,99426.0,1.50056]
[1738000403946,0.3608,99428.0,99426.0,1.5]
[1738000404249,0.3608,99428.0,99426.0,1.701223]
[1738000404438,0.3608,99428.0,99426.0,1.65108009]
[1738000404958,0.3608,99428.0,99426.0,1.44985709]
[1738000405146,0.3608,99428.0,99424.0,0.00015091]
[1738000405343,0.008,99427.0,99426.0,0.001]
[1738000405543,0.008,99427.0,99409.0,0.201259]
[1738000405743,0.3608,99411.0,99409.0,0.201259]
[1738000406051,0.3608,99411.0,99403.0,0.201271]
[1738000406444,0.3608,99411.0,99384.0,0.050327]
[1738000406445,0.3608,99411.0,99405.0,0.05198054]
[1738000406649,0.3608,99417.0,99415.0,0.201246]
[1738000407040,0.3608,99417.0,99405.0,0.00150902]
[1738000407041,0.00015091,99418.0,99410.0,0.3608]
[1738000407240,0.00015091,99418.0,99417.0,0.201243]
[1738000407444,0.00015091,99418.0,99417.0,0.15110009]
[1738000407850,0.00015091,99418.0,99411.0,0.201254]
[1738000408154,0.00015091,99418.0,99410.0,0.04970722]
[1738000408453,0.00015091,99418.0,99414.0,0.201248]
[1738000408654,0.00015091,99418.0,99416.0,0.201244]
[1738000408843,0.005,99417.0,99416.0,0.201244]
[1738000409354,0.00115091,99418.0,99416.0,0.201244]
[1738000409556,0.00415091,99418.0,99416.0,0.201244]
[1738000409944,0.002,99417.0,99416.0,0.201244]
[1738000410147,0.002,99417.0,99416.0,0.202244]
[1738000410148,0.007,99417.0,99416.0,0.202244]
[1738000410344,0.007,99417.0,99416.0,0.25228344]
[1738000410642,0.007,99417.0,99416.0,0.20214053]
[1738000411651,0.00015091,99418.0,99416.0,1.70114053]
[1738000411860,0.00715091,99418.0,99416.0,1.70214053]
[1738000412246,0.00215091,99418.0,99416.0,1.55003944]
[1738000412449,0.005,99417.0,99416.0,1.75228444]
[1738000412653,0.007,99417.0,99416.0,1.75228444]
[1738000412847,0.007,99417.0,99416.0,1.75128444]
[1738000412848,0.002,99417.0,99416.0,1.75128444]
[1738000413159,0.002,99417.0,99416.0,1.75228444]
[1738000413459,0.44977335,99443.0,99416.0,1.5]
[1738000413754,0.005,99417.0,99416.0,1.70214153]
[1738000414159,0.44977335,99443.0,99416.0,1.55066469]
[1738000414357,0.07405397,99443.0,99439.0,0.3608]
[1738000414550,0.14868834,99455.0,99440.0,0.201195]
[1738000414751,0.00015091,99451.0,99448.0,0.3608]
[1738000415055,0.00015091,99451.0,99450.0,0.201176]
[1738000415662,0.00015091,99451.0,99450.0,1.701176]
[1738000416363,0.00915091,99451.0,99450.0,1.702176]
[1738000416562,0.00915091,99451.0,99450.0,1.65203309]
[1738000417763,0.01215091,99451.0,99450.0,1.7022341]
[1738000418065,0.01215091,99451.0,99450.0,1.55120101]
[1738000419158,0.01215091,99451.0,99450.0,0.05120101]
[1738000419659,0.37295091,99451.0,99450.0,0.0010581]
[1738000419859,0.20118,99449.0,99429.0,0.049592]
[1738000420066,0.7216,99430.0,99426.0,0.17943966]
[1738000420561,0.7216,99430.0,99426.0,0.22873452]
[1738000421252,0.3608,99430.0,99429.0,0.20122]
[1738000421556,0.00015091,99451.0,99430.0,0.050304]
[1738000421763,0.00015091,99451.0,99444.0,0.201188]
[1738000422057,0.00015091,99451.0,99450.0,0.201177]
[1738000422650,0.00015091,99451.0,99450.0,1.65103409]
[1738000422651,0.00215091,99451.0,99450.0,1.65103409]
[1738000423256,0.00215091,99451.0,99450.0,1.55053265]
[1738000423466,0.201197,99449.0,99441.0,0.00015083]
[1738000423764,0.3608,99442.0,99441.0,0.00015083]
[1738000423969,0.3608,99442.0,99430.0,1.5]
[1738000424167,0.3608,99431.0,99430.0,1.5]
[1738000424852,0.3608,99431.0,99424.0,0.05008986]
[1738000425054,0.201251,99422.0,99421.0,0.00015083]
[1738000425356,0.201277,99410.0,99408.0,0.05020559]
[1738000425561,0.7216,99409.0,99400.0,0.34939935]
[1738000425759,0.7216,99409.0,99407.0,0.35882005]
[1738000426455,0.922879,99409.0,99407.0,0.01879939]
[1738000427750,0.922879,99409.0,99408.0,0.003]
[1738000428157,0.7216,99409.0,99408.0,0.003]
[1738000428382,0.3608,99409.0,99408.0,0.003]
[1738000428550,0.3618,99409.0,99407.0,0.201282]
[1738000428750,0.004,99409.0,99407.0,0.15113909]
[1738000429166,0.004,99409.0,99401.0,0.201294]
[1738000429466,0.005,99409.0,99405.0,0.25302222]
[1738000429657,0.005,99409.0,99407.0,0.201283]
[1738000429965,0.005,99409.0,99405.0,0.05173622]
[1738000430952,0.3608,99406.0,99405.0,0.05173622]
[1738000431767,0.3608,99406.0,99405.0,1.50159331]
[1738000431968,0.3608,99406.0,99405.0,1.501]
[1738000432261,0.3608,99415.0,99405.0,1.501]
[1738000432467,0.34484248,99415.0,99414.0,0.201269]
[1738000432666,0.34484248,99415.0,99405.0,0.00052]
[1738000432854,0.34484248,99415.0,99405.0,0.002]
[1738000432855,0.3608,99406.0,99405.0,0.002]
[1738000433260,0.562085,99406.0,99405.0,0.001]
[1738000433563,0.562085,99406.0,99405.0,0.005]
[1738000433759,0.3608,99406.0,99405.0,0.005]
[1738000433961,0.3608,99406.0,99405.0,0.001]
[1738000434161,0.3638,99406.0,99405.0,0.001]
[1738000434458,0.3638,99406.0,99398.0,0.00015083]
[1738000434666,0.3638,99406.0,99398.0,0.20145083]
[1738000434868,0.3638,99406.0,99405.0,0.201287]
[1738000435055,0.3638,99406.0,99400.0,0.201297]
[1738000435259,0.3638,99406.0,99395.0,0.05083598]
[1738000435459,0.3648,99406.0,99401.0,0.201294]
[1738000435659,0.3608,99404.0,99394.0,0.49592]
[1738000435859,0.3608,99395.0,99394.0,0.54616199]
[1738000436371,0.3608,99395.0,99394.0,2.04616199]
[1738000436567,0.3608,99395.0,99394.0,0.49592]
[1738000437170,0.3608,99404.0,99398.0,0.2013]
[1738000437365,0.3608,99404.0,99394.0,0.49592]
[1738000437366,0.7216,99404.0,99397.0,0.201303]
[1738000437567,0.7216,99404.0,99394.0,0.49592]
[1738000437765,0.3608,99395.0,99394.0,0.44677709]
[1738000438567,0.3608,99395.0,99394.0,0.44577709]
[1738000439161,0.3608,99395.0,99394.0,0.44677709]
[1738000439367,0.3608,99395.0,99394.0,0.44777709]
[1738000440477,0.3608,99404.0,99394.0,0.44777709]
[1738000440769,0.3608,99404.0,99403.0,0.201291]
[1738000440973,0.3608,99404.0,99403.0,0.15114809]
[1738000441569,0.11984488,99406.0,99405.0,0.201287]
[1738000442274,0.3608,99442.0,99405.0,0.05106195]
[1738000442466,0.36156,99442.0,99425.0,1.5]
[1738000442671,0.3608,99442.0,99436.0,0.201224]
[1738000442865,0.3608,99466.0,99436.0,0.201224]
[1738000443065,0.3608,99466.0,99455.0,0.201185]
[1738000443267,0.3608,99466.0,99450.0,0.201195]
[1738000443472,0.3608,99466.0,99447.0,0.1457819]
[1738000443473,0.36095082,99466.0,99455.0,0.201186]
[1738000443979,0.36095082,99466.0,99455.0,0.15104309]
[1738000444173,0.36095082,99466.0,99456.0,1.5]
[1738000444682,0.35946959,99466.0,99456.0,1.55036709]
[1738000444871,0.00015082,99466.0,99465.0,0.201166]
[1738000445375,0.00015082,99466.0,99457.0,0.1817]
[1738000445579,0.004,99457.0,99456.0,1.69614899]
[1738000445768,0.004,99457.0,99456.0,0.05036709]
[1738000445970,0.004,99457.0,99451.0,0.496]
[1738000446275,0.3608,99452.0,99451.0,0.05151008]
[1738000446480,0.6608,99452.0,99431.0,0.0015085]
[1738000446669,0.3608,99432.0,99431.0,0.0015085]
[1738000446869,0.3608,99432.0,99421.0,0.13306559]
[1738000447175,0.3608,99422.0,99420.0,0.04947083]
[1738000447473,0.3608,99422.0,99410.0,0.1457819]
[1738000447870,0.00015082,99431.0,99413.0,0.3608]
[1738000448180,0.00015082,99431.0,99430.0,0.201236]